Workbook

Sheet Лист1
A1: Choose distance, rb% and ChipEV for each limit: | G1: View rakeback, profit without jacks and total profit:
B3: limit, $ | C3: distance | D3: Rakeback | E3: ChipEV | F3: itm% | H3: Rakeback | I3: Profit-top3 | J3: Profit with top3 | K3: Total profit
B4: 15 | C4: 1000 | D4: 0.31 | E4: 30 | F4: =(500+E4)/1500 -> 0.3533333333 | H4: =B4*C4*0.05*D4 -> 232.5 | I4: =(F4*1.790427-(1-F4))*B4*C4 -> -210.7369 | J4: =(F4*1.85-(1-F4))*B4*C4 -> 105 | K4: =H4+J4 -> 337.5
B5: 30 | C5: 1000 | D5: 0.31 | E5: 40 | F5: =(500+E5)/1500 -> 0.36 | H5: =B5*C5*0.05*D5 -> 465 | I5: =(F5*1.790427-(1-F5))*B5*C5 -> 136.6116 | J5: =(F5*1.85-(1-F5))*B5*C5 -> 780 | K5: =H5+J5 -> 1245
B6: 60 | C6: 1000 | D6: 0.4 | E6: 50 | F6: 0.3666666667 | H6: 1200 | I6: 1389.394 | J6: 2700 | K6: 3900
B7: 100 | C7: 1000 | D7: 0.6 | E7: 60 | F7: 0.3733333333 | H7: 3000 | I7: 4175.941333 | J7: 6400 | K7: 9400
